fUSD/lending_fUSD_20250930
["ID","MTS","AMOUNT","RATE_DAILY","PERIOD"]
[388600087,1759249865513,-473.151156,0.000194,2]
[388600088,1759249865522,-187.992218,0.000194,2]
[388600089,1759249865532,-473.151156,0.000194,2]
[388600090,1759249865541,-187.992218,0.000194,2]
[388600091,1759249865550,-8849.672001,0.000194,2]
[388600092,1759249865559,-473.151156,0.000194,2]
[388600093,1759249865569,-187.992218,0.000194,2]
[388600094,1759249865578,-270.142112,0.000194,2]
[388600095,1759249865587,-8849.672001,0.000194,2]
[388600096,1759249865596,-473.151156,0.000194,2]
[388600097,1759249865605,-187.992218,0.000194,2]
[388600098,1759249865615,-270.142112,0.000194,2]
[388600099,1759249865625,-8849.672001,0.000194,2]
[388600100,1759249865636,-840.246832,0.000194,2]
[388600101,1759249865646,-270.142112,0.000194,2]
[388600102,1759249865656,-8849.672001,0.000194,2]
[388600103,1759249865665,-840.246832,0.000194,2]
[388600104,1759249865675,-270.142112,0.000194,2]
[388600105,1759249865684,-840.246832,0.000194,2]
[388600106,1759249865693,-151.0,0.000194,2]
[388600107,1759249865705,-840.246832,0.000194,2]
[388600108,1759249865714,-151.0,0.000194,2]
[388600109,1759249865724,-151.0,0.000194,2]
[388600110,1759249865733,-151.0,0.000194,2]
[388600111,1759249865743,-151.0,0.000194,2]
[388600112,1759249865753,-151.0,0.000194,2]
[388600113,1759249865762,-224.911754,0.000194,2]
[388600114,1759249865771,-334.217639,0.000194,2]
[388600115,1759249865781,-151.0,0.000194,2]
[388600116,1759249865791,-334.217639,0.000194,2]
[388600117,1759249865799,-334.217639,0.000194,2]
[388600118,1759249865808,-334.217639,0.000194,2]
[388600119,1759249865818,-423.712716,0.000194,2]
[388600120,1759249865827,-423.712716,0.000194,2]
[388600121,1759249865838,-423.712716,0.000194,2]
[388600122,1759249865848,-423.712716,0.000194,2]
[388600123,1759249865857,-151.0,0.000194,2]
[388600124,1759249865866,-151.0,0.000194,2]
[388600125,1759249865879,-879.490278,0.000194,2]
[388600126,1759249865888,-151.0,0.000194,2]
[388600127,1759249865898,-151.0,0.000194,2]
[388600128,1759249865907,-879.490278,0.000194,2]
[388600129,1759249865919,-151.0,0.000194,2]
[388600130,1759249865928,-2115.059367,0.000194,2]
[388600131,1759249865938,-267.266365,0.000194,2]
[388600132,1759249865949,-879.490278,0.000194,2]
[388600133,1759249866074,-2115.059367,0.000194,2]
[388600134,1759249866083,-267.266365,0.000194,2]
[388600135,1759249866092,-879.490278,0.000194,2]
[388600136,1759249866102,-2115.059367,0.000194,2]
[388600137,1759249866111,-267.266365,0.000194,2]
[388600138,1759249866120,-162.246859,0.000194,2]
[388600139,1759249866131,-2115.059367,0.000194,2]
[388600140,1759249866141,-153.011882,0.000194,2]
[388600141,1759249866151,-267.266365,0.000194,2]
[388600142,1759249866161,-153.011882,0.000194,2]
[388600143,1759249866174,-151.0,0.000194,2]
[388600144,1759249866184,-153.011882,0.000194,2]
[388600145,1759249866193,-296.703193,0.000194,2]
[388600146,1759249866204,-153.011882,0.000194,2]
[388600147,1759249866214,-618.582831,0.000194,2]
[388600148,1759249866223,-151.0,0.000194,2]
[388600149,1759249866231,-384.787376,0.000194,2]
[388600150,1759249866241,-296.703193,0.000194,2]
[388600151,1759249866250,-618.582831,0.000194,2]
[388600152,1759249866259,-384.787376,0.000194,2]
[388600153,1759249866268,-151.0,0.000194,2]
[388600154,1759249866277,-296.703193,0.000194,2]
[388600155,1759249866286,-618.582831,0.000194,2]
[388600156,1759249866295,-384.787376,0.000194,2]
[388600157,1759249866304,-296.703193,0.000194,2]
[388600158,1759249866313,-642.948477,0.000194,2]
[388600159,1759249866322,-618.582831,0.000194,2]
[388600160,1759249866332,-384.787376,0.000194,2]
[388600161,1759249866341,-642.948477,0.000194,2]
[388600162,1759249866350,-642.948477,0.000194,2]
[388600163,1759249866358,-642.948477,0.000194,2]
[388600164,1759249866367,-151.0,0.000194,2]
[388600165,1759249866376,-228.387763,0.000194,2]
[388600166,1759249866385,-228.387763,0.000194,2]
[388600167,1759249866393,-228.387763,0.000194,2]
[388600168,1759249866402,-228.387763,0.000194,2]
[388600169,1759249866410,-177.377123,0.000194,2]
[388600170,1759249866420,-177.377123,0.000194,2]
[388600171,1759249866429,-158.614346,0.000194,2]
[388600172,1759249866438,-158.614346,0.000194,2]
[388600173,1759249866446,-177.377123,0.000194,2]
[388600174,1759249866456,-158.614346,0.000194,2]
[388600175,1759249866466,-177.377123,0.000194,2]
[388600176,1759249866474,-158.614346,0.000194,2]
[388600177,1759249866484,-151.0,0.000194,2]
[388600178,1759249866493,-879.582333,0.000194,2]
[388600179,1759249866502,-151.0,0.000194,2]
[388600180,1759249866511,-692.508169,0.000194,2]
[388600181,1759249866519,-879.582333,0.000194,2]
[388600182,1759249866528,-3675.089856,0.000194,2]
[388600183,1759249866539,-151.0,0.000194,2]
[388600184,1759249866548,-692.508169,0.000194,2]
[388600185,1759249866558,-151.0,0.000194,2]
[388600186,1759249866567,-280.641133,0.000194,2]
[388600187,1759249866579,-151.0,0.000194,2]
[388600188,1759249866588,-879.582333,0.000194,2]
[388600189,1759249866598,-3675.089856,0.000194,2]
[388600190,1759249866608,-568.709281,0.000194,2]
[388600191,1759249866617,-151.0,0.000194,2]
[388600192,1759249866628,-692.508169,0.000194,2]
[388600193,1759249866638,-167.572792,0.000194,2]
[388600194,1759249866647,-3675.089856,0.000194,2]
[388600195,1759249866658,-879.582333,0.000194,2]
[388600196,1759249866668,-568.709281,0.000194,2]
[388600197,1759249866678,-151.0,0.000194,2]
[388600198,1759249866688,-692.508169,0.000194,2]
[388600199,1759249866699,-151.0,0.000194,2]
[388600200,1759249866710,-3675.089856,0.000194,2]
[388600201,1759249866719,-568.709281,0.000194,2]
[388600202,1759249866729,-151.0,0.000194,2]
[388600203,1759249866739,-169.190461,0.000194,2]
[388600204,1759249866750,-151.0,0.000194,2]
[388600205,1759249866760,-568.709281,0.000194,2]
[388600206,1759249866770,-169.190461,0.000194,2]
[388600207,1759249866781,-169.190461,0.000194,2]
[388600208,1759249866790,-151.0,0.000194,2]
[388600209,1759249866800,-5196.4,0.00019424,8]
[388600210,1759249866810,-1305.01417658,0.00019443,2]
[388600211,1759249866819,-692.86,0.0001945,2]
[388600212,1759249866831,-692.86,0.0001945,2]
[388600213,1759249866840,-692.86,0.0001945,2]
[388600214,1759249866849,-692.86,0.0001945,2]
[388600215,1759249866858,-1624.81,0.0001945,2]
[388600216,1759249866868,-1624.81,0.0001945,2]
[388600217,1759249866881,-1624.81,0.0001945,2]
[388600218,1759249866892,-1624.81,0.0001945,2]
[388600219,1759249866901,-722.99,0.00019451,2]
[388600220,1759249866910,-722.99,0.00019451,2]
[388600221,1759249866921,-722.99,0.00019451,2]
[388600222,1759249866931,-722.99,0.00019451,2]
[388600223,1759249866941,-722.99,0.00019451,2]
[388600224,1759249866951,-722.99,0.00019451,2]
[388600225,1759249866961,-722.99,0.00019451,2]
[388600226,1759249866970,-722.99,0.00019451,2]
[388600227,1759249866980,-692.86,0.00019451,2]
[388600228,1759249866989,-692.86,0.00019451,2]
[388600229,1759249866998,-692.86,0.00019451,2]
[388600230,1759249867010,-1000.0,0.00019451,2]
[388600231,1759249867019,-678.28,0.00019451,2]
[388600232,1759249867028,-678.28,0.00019451,2]
[388600233,1759249867038,-678.28,0.00019451,2]
[388600234,1759249867048,-678.28,0.00019451,2]
[388600235,1759249867058,-678.28,0.00019451,2]
[388600236,1759249867067,-678.28,0.00019451,2]
[388600237,1759249867077,-678.28,0.00019451,2]
[388600238,1759249867086,-678.28,0.00019451,2]
[388600239,1759249867095,-678.28,0.00019451,2]
[388600240,1759249867106,-500.0,0.00019451,2]
[388600241,1759249867114,-500.0,0.00019451,2]
[388600242,1759249867123,-500.0,0.00019451,2]
[388600243,1759249867133,-500.0,0.00019451,2]
[388600244,1759249867142,-500.0,0.00019451,2]
[388600245,1759249867151,-500.0,0.00019451,2]
[388600246,1759249867160,-604.88,0.00019451,2]
[388600247,1759249867170,-500.0,0.00019451,2]
[388600248,1759249867179,-500.0,0.00019451,2]
[388600249,1759249867188,-500.0,0.00019451,2]
[388600250,1759249867197,-500.0,0.00019451,2]
[388600251,1759249867206,-500.0,0.00019451,2]
[388600252,1759249867215,-500.0,0.00019451,2]
[388600253,1759249867224,-500.0,0.00019451,2]
[388600254,1759249867233,-500.0,0.00019451,2]
[388600255,1759249867242,-500.0,0.00019451,2]
[388600256,1759249867251,-396.9,0.00019451,2]
[388600257,1759249867260,-1624.81,0.00019451,2]
[388600258,1759249867269,-1624.81,0.00019451,2]
[388600259,1759249867278,-1624.81,0.00019451,2]
[388600260,1759249867287,-1624.81,0.00019451,2]
[388600261,1759249867298,-1624.81,0.00019451,2]
[388600262,1759249867308,-1624.81,0.00019451,2]
[388600263,1759249867318,-1624.81,0.00019451,2]
[388600264,1759249867328,-1624.81,0.00019451,2]
[388600265,1759249867337,-500.0,0.00019452,2]
[388600266,1759249867346,-500.0,0.00019452,2]
[388600267,1759249867355,-500.0,0.00019452,2]
[388600268,1759249867365,-1149.03,0.00019452,2]
[388600269,1759249867374,-1775.24,0.00019452,2]
[388600270,1759249867383,-500.0,0.00019452,2]
[388600271,1759249867393,-500.0,0.00019452,2]
[388600272,1759249867402,-1475.11,0.00019452,2]
[388600273,1759249867411,-500.0,0.00019452,2]
[388600274,1759249867420,-1048.49,0.00019452,2]
[388600275,1759249867429,-2712.26,0.00019452,2]
[388600276,1759249867438,-503.0,0.00019452,2]
[388600277,1759249867448,-582.24,0.00019452,2]
[388600278,1759249867457,-500.0,0.00019452,2]
[388600279,1759249867467,-769.64,0.00019452,2]
[388600280,1759249867476,-638.79,0.00019452,2]
[388600281,1759249867486,-500.0,0.00019452,2]
[388600282,1759249867495,-500.0,0.00019452,2]
[388600283,1759249867504,-500.0,0.00019452,2]
[388600284,1759249867514,-500.0,0.00019452,2]
[388600285,1759249867523,-500.0,0.00019452,2]
[388600286,1759249867533,-1393.62,0.00019452,2]
[388600287,1759249867543,-1892.62,0.00019452,2]
[388600288,1759249867552,-1459.49,0.00019452,2]
[388600289,1759249867560,-863.86,0.00019452,2]
[388600290,1759249867570,-500.0,0.00019452,2]
[388600291,1759249867579,-500.0,0.00019452,2]
[388600292,1759249867588,-1337.92,0.00019452,2]
[388600293,1759249867597,-696.36,0.00019452,2]
[388600294,1759249867606,-500.0,0.00019452,2]
[388600295,1759249867615,-914.34,0.00019452,2]
[388600296,1759249867624,-500.0,0.00019452,2]
[388600297,1759249867633,-746.77,0.00019452,2]
[388600298,1759249867642,-500.0,0.00019452,2]
[388600299,1759249867651,-1850.29,0.00019452,2]
[388600300,1759249867660,-500.0,0.00019452,2]
[388600301,1759249867669,-500.0,0.00019452,2]
[388600302,1759249867679,-500.0,0.00019452,2]
[388600303,1759249867687,-925.02,0.00019452,2]
[388600304,1759249867696,-500.0,0.00019452,2]
[388600305,1759249867705,-544.09,0.00019452,2]
[388600306,1759249867714,-500.0,0.00019452,2]
[388600307,1759249867723,-500.0,0.00019452,2]
[388600308,1759249867732,-1925.82,0.00019452,2]
[388600309,1759249867741,-500.0,0.00019452,2]
[388600310,1759249867750,-500.0,0.00019452,2]
[388600311,1759249867759,-1194.75,0.00019452,2]
[388600312,1759249867768,-500.0,0.00019452,2]
[388600313,1759249867778,-1123.81,0.00019452,2]
[388600314,1759249867787,-1376.42,0.00019452,2]
[388600315,1759249867796,-500.0,0.00019452,2]
[388600316,1759249867805,-1666.77,0.00019452,2]
[388600317,1759249867814,-798.63,0.00019452,2]
[388600318,1759249867824,-724.3,0.00019452,2]
[388600319,1759249867833,-618.52,0.00019452,2]
[388600320,1759249867843,-500.0,0.00019452,2]
[388600321,1759249867853,-500.0,0.00019452,2]
[388600322,1759249867862,-500.0,0.00019452,2]
[388600323,1759249867872,-500.0,0.00019452,2]
[388600324,1759249867884,-500.0,0.00019452,2]
[388600325,1759249867893,-500.0,0.00019452,2]
[388600326,1759249867902,-682.63,0.00019452,2]
[388600327,1759249867911,-885.76,0.00019452,2]
[388600328,1759249867921,-919.66,0.00019452,2]
[388600329,1759249867931,-741.41,0.00019452,2]
[388600330,1759249867940,-500.0,0.00019452,2]
[388600331,1759249867952,-945.17,0.00019452,2]
[388600332,1759249867961,-894.31,0.00019452,2]
[388600333,1759249867970,-500.0,0.00019452,2]
[388600334,1759249867979,-637.02,0.00019452,2]
[388600335,1759249867988,-722.87,0.00019452,2]
[388600336,1759249867997,-500.0,0.00019452,2]
[388600337,1759249868006,-662.52,0.00019452,2]
[388600338,1759249868015,-807.94,0.00019452,2]
[388600339,1759249868024,-975.0,0.00019452,2]
[388600340,1759249868034,-509.54,0.00019452,2]
[388600341,1759249868044,-500.0,0.00019452,2]
[388600342,1759249868053,-500.0,0.00019452,2]
[388600343,1759249868062,-500.0,0.00019452,2]
[388600344,1759249868071,-5822.837619,0.00019452,2]
[388600345,1759249868081,-500.0,0.00019452,2]
[388600346,1759249868090,-500.0,0.00019452,2]
[388600347,1759249868100,-276.778753,0.00019452,2]
[388600348,1759249868110,-500.0,0.00019452,2]
[388600349,1759249868119,-500.0,0.00019452,2]
[388600350,1759249868129,-5582.851194,0.00019452,2]
[388600351,1759249868138,-500.0,0.00019452,2]
[388600352,1759249868148,-539.12,0.00019452,2]
[388600353,1759249868158,-2582.996737,0.00019452,2]
[388600354,1759249868167,-516.65,0.00019452,2]
[388600355,1759249868177,-1826.36,0.00019452,2]
[388600356,1759249868187,-500.0,0.00019452,2]
[388600357,1759249868196,-961.15,0.00019452,2]
[388600358,1759249868208,-500.0,0.00019452,2]
[388600359,1759249868219,-500.0,0.00019452,2]
[388600360,1759249868229,-500.0,0.00019452,2]
[388600361,1759249868239,-500.0,0.00019452,2]
[388600362,1759249868250,-536.79,0.00019452,2]
[388600363,1759249868260,-500.0,0.00019452,2]
[388600364,1759249868270,-2583.74,0.00019452,2]
[388600365,1759249868280,-577.83,0.00019452,2]
[388600366,1759249868290,-2430.66,0.00019452,2]
[388600367,1759249868300,-500.0,0.00019452,2]
[388600368,1759249868311,-507.53,0.00019452,2]
[388600369,1759249868320,-1271.56,0.00019452,2]
[388600370,1759249868330,-871.21,0.00019452,2]
[388600371,1759249868340,-500.0,0.00019452,2]
[388600372,1759249868351,-500.0,0.00019452,2]
[388600373,1759249868362,-500.0,0.00019452,2]
[388600374,1759249868373,-500.0,0.00019452,2]
[388600375,1759249868383,-500.0,0.00019452,2]
[388600376,1759249868393,-500.0,0.00019452,2]
[388600377,1759249868402,-500.0,0.00019452,2]
[388600378,1759249868412,-733.35,0.00019452,2]
[388600379,1759249868421,-500.0,0.00019452,2]
[388600380,1759249868431,-955.76,0.00019452,2]
[388600381,1759249868440,-759.47,0.00019452,2]
[388600382,1759249868452,-1202.06,0.00019452,2]
[388600383,1759249868462,-500.0,0.00019452,2]
[388600384,1759249868472,-500.0,0.00019452,2]
[388600385,1759249868482,-500.0,0.00019452,2]
[388600386,1759249868491,-500.0,0.00019452,2]
[388600387,1759249868501,-551.88,0.00019452,2]
[388600388,1759249868512,-500.0,0.00019452,2]
[388600389,1759249868523,-500.0,0.00019452,2]
[388600390,1759249868532,-2500.48,0.00019452,2]
[388600391,1759249868542,-500.0,0.00019452,2]
[388600392,1759249868551,-500.0,0.00019452,2]
[388600393,1759249868561,-978.17,0.00019452,2]
[388600394,1759249868570,-500.0,0.00019452,2]
[388600395,1759249868580,-616.49,0.00019452,2]
[388600396,1759249868589,-500.0,0.00019452,2]
[388600397,1759249868599,-500.0,0.00019452,2]
[388600398,1759249868608,-537.71,0.00019452,2]
[388600399,1759249868618,-500.0,0.00019452,2]
[388600400,1759249868627,-2779.18,0.00019452,2]
[388600401,1759249868638,-2779.18,0.00019452,2]
[388600402,1759249868653,-159.43036958,0.00019452,2]
[388600403,1759249868663,-500.0,0.00019452,2]
[388600404,1759249868674,-500.0,0.00019452,2]
[388600405,1759249868684,-849.63,0.00019452,2]
[388600406,1759249868694,-814.23,0.00019452,2]
[388600407,1759249868705,-500.0,0.00019452,2]
[388600408,1759249868715,-500.0,0.00019452,2]
[388600409,1759249868724,-814.13,0.00019452,2]
[388600410,1759249868734,-500.0,0.00019452,2]
[388600411,1759249868743,-500.0,0.00019452,2]
[388600412,1759249868753,-500.0,0.00019452,2]
[388600413,1759249868763,-500.0,0.00019452,2]
[388600414,1759249868773,-797.55017,0.00019452,2]
[388600415,1759249868783,-675.279098,0.00019452,2]
[388600416,1759249868793,-500.0,0.00019452,2]
[388600417,1759249868803,-742.51,0.00019452,2]
[388600418,1759249868812,-500.0,0.00019452,2]
[388600419,1759249868821,-500.0,0.00019452,2]
[388600420,1759249868830,-843.81,0.00019452,2]
[388600421,1759249868841,-500.0,0.00019452,2]
[388600422,1759249868851,-300.0,0.00019452,2]
[388600423,1759249868860,-854.016184,0.00019452,2]
[388600424,1759249868870,-799.49,0.00019452,2]
[388600425,1759249868885,-500.0,0.00019452,2]
[388600426,1759249868895,-500.0,0.00019452,2]
[388600427,1759249868905,-500.0,0.00019452,2]
[388600428,1759249868915,-317.207087,0.00019452,2]
[388600429,1759249868925,-500.0,0.00019452,2]
[388600430,1759249868934,-500.0,0.00019452,2]
[388600431,1759249868944,-1170.93,0.00019452,2]
[388600432,1759249868956,-2360.31,0.00019452,2]
[388600433,1759249868966,-500.0,0.00019452,2]
[388600434,1759249868976,-943.27,0.00019452,2]
[388600435,1759249868986,-531.19471929,0.00019452,2]
[388600436,1759249868997,-500.0,0.00019452,2]
[388600437,1759249869020,-500.0,0.00019452,2]
[388600438,1759249869029,-500.0,0.00019452,2]
[388600439,1759249869039,-500.0,0.00019452,2]
[388600440,1759249869049,-500.0,0.00019452,2]
[388600441,1759249869058,-500.0,0.00019452,2]
[388600442,1759249869068,-500.0,0.00019452,2]
[388600443,1759249869078,-1179.81,0.00019452,2]
[388600444,1759249869089,-500.0,0.00019452,2]
[388600445,1759249869099,-500.0,0.00019452,2]
[388600446,1759249869108,-500.0,0.00019452,2]
[388600447,1759249869118,-500.0,0.00019452,2]
[388600448,1759249869127,-500.0,0.00019452,2]
[388600449,1759249869137,-298.93278116,0.00019452,2]
[388600450,1759249869146,-205.38496668,0.00019452,2]
[388600451,1759249869156,-500.0,0.00019452,2]
[388600452,1759249869165,-500.0,0.00019452,2]
[388600453,1759249869175,-500.0,0.00019452,2]
[388600454,1759249869184,-1888.18,0.00019452,2]
[388600455,1759249869194,-500.0,0.00019452,2]
[388600456,1759249869207,-500.0,0.00019452,2]
[388600457,1759249869217,-972.28,0.00019452,2]
[388600458,1759249869227,-537.47,0.00019452,2]
[388600459,1759249869237,-500.0,0.00019452,2]
[388600460,1759249869247,-500.0,0.00019452,2]
[388600461,1759249869257,-1619.02,0.00019452,2]
[388600462,1759249869266,-500.0,0.00019452,2]
[388600463,1759249869275,-1104.78,0.00019452,2]
[388600464,1759249869286,-151.0,0.00019452,2]
[388600465,1759249869296,-151.0,0.00019452,2]
[388600466,1759249869306,-812.32,0.00019452,2]
[388600467,1759249869316,-151.0,0.00019452,2]
[388600468,1759249869325,-833.79,0.00019452,2]
[388600469,1759249869335,-500.0,0.00019452,2]
[388600470,1759249869344,-759.14,0.00019452,2]
[388600471,1759249869354,-500.0,0.00019452,2]
[388600472,1759249869364,-151.0,0.00019452,2]
[388600473,1759249869373,-1095.94,0.00019452,2]
[388600474,1759249869382,-500.0,0.00019452,2]
[388600475,1759249869391,-151.0,0.00019452,2]
[388600476,1759249869401,-500.0,0.00019452,2]
[388600477,1759249869410,-664.625143,0.00019452,2]
[388600478,1759249869419,-500.0,0.00019452,2]
[388600479,1759249869429,-500.0,0.00019452,2]
[388600480,1759249869439,-660.83,0.00019452,2]
[388600481,1759249869451,-500.0,0.00019452,2]
[388600482,1759249869460,-500.0,0.00019452,2]
[388600483,1759249869470,-500.0,0.00019452,2]
[388600484,1759249869479,-500.0,0.00019452,2]
[388600485,1759249869489,-500.0,0.00019452,2]
[388600486,1759249869498,-1528.99,0.00019452,2]
[388600487,1759249869508,-511.40263057,0.00019452,2]
[388600488,1759249869518,-500.0,0.00019452,2]
[388600489,1759249869528,-500.0,0.00019452,2]
[388600490,1759249869537,-1592.76,0.00019452,2]
[388600491,1759249869546,-500.0,0.00019452,2]
[388600492,1759249869555,-2307.77,0.00019452,2]
[388600493,1759249869564,-1285.84,0.00019452,2]
[388600494,1759249869573,-500.0,0.00019452,2]
[388600495,1759249869582,-500.0,0.00019452,2]
[388600496,1759249869591,-500.0,0.00019452,2]
[388600497,1759249869600,-500.0,0.00019452,2]
[388600498,1759249869609,-500.0,0.00019452,2]
[388600499,1759249869619,-1106.31,0.00019452,2]
[388600500,1759249869628,-500.0,0.00019452,2]
[388600501,1759249869638,-1429.35,0.00019452,2]
[388600502,1759249869648,-965.54,0.00019452,2]
[388600503,1759249869657,-516.66,0.00019452,2]
[388600504,1759249869666,-475.88,0.00019452,2]
[388600505,1759249869675,-500.0,0.00019452,2]
[388600506,1759249869684,-151.0,0.00019452,2]
[388600507,1759249869693,-151.0,0.00019452,2]
[388600508,1759249869704,-1609.04,0.00019452,2]
[388600509,1759249869713,-500.0,0.00019452,2]
[388600510,1759249869722,-500.0,0.00019452,2]
[388600511,1759249869732,-500.0,0.00019452,2]
[388600512,1759249869741,-1093.76,0.00019452,2]
[388600513,1759249869750,-500.0,0.00019452,2]
[388600514,1759249869759,-500.0,0.00019452,2]
[388600515,1759249869768,-1111.51,0.00019452,2]
[388600516,1759249869778,-500.0,0.00019452,2]
[388600517,1759249869787,-729.9,0.00019452,2]
[388600518,1759249869796,-500.0,0.00019452,2]
[388600519,1759249869806,-500.0,0.00019452,2]
[388600520,1759249869815,-551.27,0.00019452,2]
[388600521,1759249869824,-151.0,0.00019452,2]
[388600522,1759249869833,-151.0,0.00019452,2]
[388600523,1759249869843,-815.97,0.00019452,2]
[388600524,1759249869852,-151.0,0.00019452,2]
[388600525,1759249869861,-151.0,0.00019452,2]
[388600526,1759249869870,-500.0,0.00019452,2]
[388600527,1759249869883,-714.93,0.00019452,2]
[388600528,1759249869893,-553.58,0.00019452,2]
[388600529,1759249869902,-151.0,0.00019452,2]
[388600530,1759249869911,-500.0,0.00019452,2]
[388600531,1759249869921,-151.0,0.00019452,2]
[388600532,1759249869930,-500.0,0.00019452,2]
[388600533,1759249869939,-151.0,0.00019452,2]
[388600534,1759249869951,-151.0,0.00019452,2]
[388600535,1759249869960,-500.0,0.00019452,2]
[388600536,1759249869969,-151.0,0.00019452,2]
[388600537,1759249869978,-151.0,0.00019452,2]
[388600538,1759249869987,-151.0,0.00019452,2]
[388600539,1759249869996,-151.0,0.00019452,2]
[388600540,1759249870006,-500.0,0.00019452,2]
[388600541,1759249870015,-687.97,0.00019452,2]
[388600542,1759249870024,-500.0,0.00019452,2]
[388600543,1759249870033,-500.0,0.00019452,2]
[388600544,1759249870042,-151.0,0.00019452,2]
[388600545,1759249870052,-500.0,0.00019452,2]
[388600546,1759249870061,-151.0,0.00019452,2]
[388600547,1759249870070,-460.0,0.00019452,2]
[388600548,1759249870079,-936.18,0.00019452,2]
[388600549,1759249870088,-3030.1,0.00019452,2]
[388600550,1759249870098,-202.6893724,0.00019452,2]
[388600551,1759249870107,-512.83,0.00019452,2]
[388600552,1759249870116,-151.0,0.00019452,2]
[388600553,1759249870126,-151.0,0.00019452,2]
[388600554,1759249870135,-151.0,0.00019452,2]
[388600555,1759249870145,-151.0,0.00019452,2]
[388600556,1759249870155,-500.0,0.00019452,2]
[388600557,1759249870166,-627.92,0.00019452,2]
[388600558,1759249870176,-500.0,0.00019452,2]
[388600559,1759249870185,-500.0,0.00019452,2]
[388600560,1759249870318,-500.0,0.00019452,2]
[388600561,1759249870340,-521.04,0.00019452,2]
[388600562,1759249870350,-767.75,0.00019452,2]
[388600563,1759249870359,-500.0,0.00019452,2]
[388600564,1759249870369,-2791.29,0.00019452,2]
[388600565,1759249870378,-500.0,0.00019452,2]
[388600566,1759249870388,-500.0,0.00019452,2]
[388600567,1759249870397,-1591.93,0.00019452,2]
[388600568,1759249870408,-500.0,0.00019452,2]
[388600569,1759249870417,-1679.49,0.00019452,2]
[388600570,1759249870427,-500.0,0.00019452,2]
[388600571,1759249870436,-607.38,0.00019452,2]
[388600572,1759249870446,-500.0,0.00019452,2]
[388600573,1759249870457,-500.0,0.00019452,2]
[388600574,1759249870466,-500.0,0.00019452,2]
[388600575,1759249870475,-500.0,0.00019452,2]
[388600576,1759249870484,-500.0,0.00019452,2]
[388600577,1759249870494,-500.0,0.00019452,2]
[388600578,1759249870503,-2077.95,0.00019452,2]
[388600579,1759249870512,-846.51,0.00019452,2]
[388600580,1759249870521,-1370.24,0.00019452,2]
[388600581,1759249870530,-151.0,0.00019452,2]
[388600582,1759249870539,-1134.21,0.00019452,2]
[388600583,1759249870548,-151.0,0.00019452,2]
[388600584,1759249870558,-500.0,0.00019452,2]
[388600585,1759249870568,-151.0,0.00019452,2]
[388600586,1759249870578,-500.0,0.00019452,2]